[Event "Late-Titled-Tuesday-Blitz-March-12-2024"]
[Site "Chess.com"]
[Date "2024.03.12"]
[Round "1"]
[White "grunbergmihai"]
[Black "stollenmonster"]
[Result "1/2-1/2"]
[WhiteElo "2502"]
[BlackElo "2861"]
[TimeControl "180+1"]
[EndTime "14:08:16 PDT"]
[Termination "Game drawn by repetition"]

1. Nf3 {[%clk 0:02:57.8]} 1... Nf6 {[%clk 0:02:59.6]} 2. c4 {[%clk 0:02:54.7]}
2... e6 {[%clk 0:03:00.5]} 3. g3 {[%clk 0:02:54.5]} 3... d5 {[%clk 0:03:01.4]}
4. Bg2 {[%clk 0:02:55]} 4... Be7 {[%clk 0:03:01.8]} 5. O-O {[%clk 0:02:55.9]}
5... O-O {[%clk 0:03:02.1]} 6. d4 {[%clk 0:02:56.6]} 6... Ne4 {[%clk 0:03:02.5]}
7. Nbd2 {[%clk 0:02:55.7]} 7... f5 {[%clk 0:03:02.9]} 8. Ne5 {[%clk 0:02:55.4]}
8... c6 {[%clk 0:03:03.3]} 9. Qc2 {[%clk 0:02:55.5]} 9... Bd7 {[%clk 0:02:59.5]}
10. Ndf3 {[%clk 0:02:54.6]} 10... Be8 {[%clk 0:02:59.3]} 11. b3 {[%clk
0:02:54.9]} 11... g5 {[%clk 0:02:58.8]} 12. Nd3 {[%clk 0:02:53.6]} 12... Nd7
{[%clk 0:02:56.9]} 13. Nfe5 {[%clk 0:02:51]} 13... Nxe5 {[%clk 0:02:54.4]} 14.
Nxe5 {[%clk 0:02:45.4]} 14... h6 {[%clk 0:02:51.9]} 15. e3 {[%clk 0:02:35.7]}
15... Rc8 {[%clk 0:02:49.4]} 16. f3 {[%clk 0:02:32]} 16... Nf6 {[%clk
0:02:49.8]} 17. c5 {[%clk 0:02:28.6]} 17... Nd7 {[%clk 0:02:49.9]} 18. f4 {[%clk
0:02:28.4]} 18... Nxe5 {[%clk 0:02:49.5]} 19. dxe5 {[%clk 0:02:24.8]} 19... Bh5
{[%clk 0:02:45.1]} 20. Bb2 {[%clk 0:02:22.7]} 20... Qe8 {[%clk 0:02:43.4]} 21.
b4 {[%clk 0:02:17.2]} 21... Rf7 {[%clk 0:02:28.8]} 22. a4 {[%clk 0:02:15.7]}
22... Rg7 {[%clk 0:02:28.7]} 23. Bd4 {[%clk 0:02:14]} 23... Bg4 {[%clk
0:02:22.5]} 24. Rab1 {[%clk 0:02:05.8]} 24... a6 {[%clk 0:02:06.8]} 25. Qd3
{[%clk 0:01:55]} 25... Qh5 {[%clk 0:02:06.2]} 26. Rfc1 {[%clk 0:01:50.6]} 26...
Be2 {[%clk 0:02:05]} 27. Qd2 {[%clk 0:01:49.6]} 27... Bc4 {[%clk 0:02:00.9]} 28.
Bf1 {[%clk 0:01:44.8]} 28... gxf4 {[%clk 0:01:52.4]} 29. exf4 {[%clk 0:01:42.5]}
29... Bxf1 {[%clk 0:01:51.4]} 30. Rxf1 {[%clk 0:01:42.1]} 30... Qg4 {[%clk
0:01:49.8]} 31. Qe3 {[%clk 0:01:24.9]} 31... h5 {[%clk 0:01:49]} 32. Qf3 {[%clk
0:01:24.3]} 32... Qg6 {[%clk 0:01:44.7]} 33. Rb2 {[%clk 0:01:20.6]} 33... Kh7
{[%clk 0:01:37.1]} 34. Rg2 {[%clk 0:01:18.2]} 34... Rcg8 {[%clk 0:01:35]} 35.
Kf2 {[%clk 0:01:15.1]} 35... h4 {[%clk 0:01:31.6]} 36. Ke2 {[%clk 0:01:07.9]}
36... Qf7 {[%clk 0:01:18.4]} 37. Rgg1 {[%clk 0:01:06.2]} 37... Rg4 {[%clk
0:01:14.3]} 38. Qd3 {[%clk 0:00:59.2]} 38... Qh5 {[%clk 0:01:10.2]} 39. Qf3
{[%clk 0:00:59.1]} 39... Kh6 {[%clk 0:01:03.8]} 40. Bf2 {[%clk 0:00:56.1]} 40...
R8g6 {[%clk 0:00:35.5]} 41. h3 {[%clk 0:00:54.4]} 41... Rxg3 {[%clk 0:00:35.9]}
42. Bxg3 {[%clk 0:00:50.2]} 42... hxg3 {[%clk 0:00:36.8]} 43. Qxh5+ {[%clk
0:00:41.1]} 43... Kxh5 {[%clk 0:00:37.7]} 44. Kf3 {[%clk 0:00:40]} 44... Kh4
{[%clk 0:00:37]} 45. Rb1 {[%clk 0:00:38]} 45... a5 {[%clk 0:00:30.9]} 46. bxa5
{[%clk 0:00:34.2]} 46... Bxc5 {[%clk 0:00:30.5]} 47. Rg2 {[%clk 0:00:34.5]}
47... Rg7 {[%clk 0:00:29.7]} 48. a6 {[%clk 0:00:30.7]} 48... bxa6 {[%clk
0:00:29.4]} 49. Rb8 {[%clk 0:00:30.9]} 49... Rh7 {[%clk 0:00:16.8]} 50. Rxg3
{[%clk 0:00:29.5]} 50... Bd4 {[%clk 0:00:09.9]} 51. Re8 {[%clk 0:00:28.9]} 51...
c5 {[%clk 0:00:09.5]} 52. Rxe6 {[%clk 0:00:28.6]} 52... c4 {[%clk 0:00:10]} 53.
Rf6 {[%clk 0:00:24.8]} 53... c3 {[%clk 0:00:08.9]} 54. Rxf5 {[%clk 0:00:25]}
54... c2 {[%clk 0:00:08.4]} 55. Rfg5 {[%clk 0:00:16.6]} 55... c1=Q {[%clk
0:00:04.3]} 56. R5g4+ {[%clk 0:00:16.9]} 56... Kh5 {[%clk 0:00:04.8]} 57. Rg5+
{[%clk 0:00:17.3]} 57... Kh6 {[%clk 0:00:05.3]} 58. Rg6+ {[%clk 0:00:17.4]}
58... Kh5 {[%clk 0:00:05.9]} 59. R6g5+ {[%clk 0:00:17.6]} 59... Kh6 {[%clk
0:00:06.5]} 60. Rg6+ {[%clk 0:00:15.9]} 60... Kh5 {[%clk 0:00:07.1]} 61. R6g5+
{[%clk 0:00:13.6]} 1/2-1/2

[Event "Late-Titled-Tuesday-Blitz-March-12-2024"]
[Site "Chess.com"]
[Date "2024.03.12"]
[Round "1"]
[White "dealshark"]
[Black "ukchessbomber"]
[Result "1-0"]
[WhiteElo "2347"]
[BlackElo "2647"]
[TimeControl "180+1"]
[EndTime "14:08:17 PDT"]
[Termination "dealshark won by resignation"]

1. d4 {[%clk 0:03:00.9]} 1... a6 {[%clk 0:02:59.8]} 2. c4 {[%clk 0:03:00.2]}
2... b5 {[%clk 0:02:59.9]} 3. e3 {[%clk 0:02:58.8]} 3... bxc4 {[%clk 0:03:00]}
4. Bxc4 {[%clk 0:02:58.4]} 4... Bb7 {[%clk 0:03:00.9]} 5. Nf3 {[%clk 0:02:58.6]}
5... Nf6 {[%clk 0:03:00.1]} 6. O-O {[%clk 0:02:57]} 6... g6 {[%clk 0:03:00.5]}
7. Ne5 {[%clk 0:02:56.2]} 7... e6 {[%clk 0:02:59.3]} 8. b3 {[%clk 0:02:51.9]}
8... Bg7 {[%clk 0:02:57]} 9. Bb2 {[%clk 0:02:52.1]} 9... O-O {[%clk 0:02:56.8]}
10. Nd2 {[%clk 0:02:52]} 10... d6 {[%clk 0:02:57.4]} 11. Nef3 {[%clk 0:02:50.2]}
11... Nbd7 {[%clk 0:02:58.1]} 12. Qe2 {[%clk 0:02:49]} 12... Qe7 {[%clk
0:02:58.1]} 13. Rac1 {[%clk 0:02:47.4]} 13... c5 {[%clk 0:02:57.9]} 14. dxc5
{[%clk 0:02:42.8]} 14... Nxc5 {[%clk 0:02:57.2]} 15. Ba3 {[%clk 0:02:42.5]}
15... Rfc8 {[%clk 0:02:55.7]} 16. Rfd1 {[%clk 0:02:41.4]} 16... Rc7 {[%clk
0:02:55.2]} 17. Bd3 {[%clk 0:02:10.4]} 17... Nd5 {[%clk 0:02:32.3]} 18. Bb1
{[%clk 0:02:09.3]} 18... Nc3 {[%clk 0:02:32.1]} 19. Rxc3 {[%clk 0:01:59.8]}
19... Bxc3 {[%clk 0:02:33]} 20. Nc4 {[%clk 0:01:57.9]} 20... Rd8 {[%clk
0:02:27.7]} 21. Nd4 {[%clk 0:01:42.5]} 21... Qg5 {[%clk 0:01:57.4]} 22. Nf3
{[%clk 0:01:39.6]} 22... Qg4 {[%clk 0:01:49.5]} 23. Rxd6 {[%clk 0:01:34]} 23...
Rxd6 {[%clk 0:01:48.5]} 24. Nxd6 {[%clk 0:01:34.9]} 24... Bxf3 {[%clk
0:01:48.5]} 25. Qxf3 {[%clk 0:01:34.5]} 25... Qxf3 {[%clk 0:01:48.9]} 26. gxf3
{[%clk 0:01:35.4]} 26... Nb7 {[%clk 0:01:33.3]} 27. Nc4 {[%clk 0:01:32.1]} 27...
Na5 {[%clk 0:01:30.8]} 28. Nd6 {[%clk 0:01:29.6]} 28... Nb7 {[%clk 0:01:30.8]}
29. Nc4 {[%clk 0:01:29.6]} 29... Bf6 {[%clk 0:01:30.9]} 30. Kg2 {[%clk
0:01:27.4]} 30... Be7 {[%clk 0:01:31.2]} 31. Bb2 {[%clk 0:01:27.1]} 31... Nd6
{[%clk 0:01:30]} 32. Be5 {[%clk 0:01:26.7]} 32... Rc6 {[%clk 0:01:30.7]} 33. Nb2
{[%clk 0:01:26]} 33... f6 {[%clk 0:01:29.1]} 34. Bd4 {[%clk 0:01:24.7]} 34... e5
{[%clk 0:01:29.1]} 35. Ba7 {[%clk 0:01:18.1]} 35... Nc8 {[%clk 0:01:20.1]} 36.
Be4 {[%clk 0:01:16.8]} 36... Nxa7 {[%clk 0:01:20.3]} 37. Bxc6 {[%clk 0:01:16.7]}
37... Nxc6 {[%clk 0:01:21.2]} 38. Nc4 {[%clk 0:01:15.8]} 38... Kf7 {[%clk
0:01:20.8]} 39. Kf1 {[%clk 0:01:06.2]} 39... Ke6 {[%clk 0:01:20.2]} 40. Ke2
{[%clk 0:01:06.4]} 40... f5 {[%clk 0:01:19.8]} 41. Kd3 {[%clk 0:01:06.1]} 41...
Bc5 {[%clk 0:01:19.6]} 42. a3 {[%clk 0:01:06]} 42... Kd5 {[%clk 0:01:14.2]} 43.
b4 {[%clk 0:01:05.7]} 43... Ba7 {[%clk 0:01:03.6]} 44. h3 {[%clk 0:01:04.9]}
44... g5 {[%clk 0:01:02.4]} 45. Kc3 {[%clk 0:01:03.6]} 45... h5 {[%clk
0:00:54.2]} 46. a4 {[%clk 0:01:03]} 46... e4 {[%clk 0:00:46.6]} 47. b5 {[%clk
0:01:01.8]} 47... axb5 {[%clk 0:00:44.8]} 48. axb5 {[%clk 0:01:02.7]} 48... Ne5
{[%clk 0:00:44.8]} 49. b6 {[%clk 0:01:03]} 49... Nxc4 {[%clk 0:00:37.1]} 50.
bxa7 {[%clk 0:01:01.1]} 50... Nb6 {[%clk 0:00:37.3]} 51. fxe4+ {[%clk
0:00:52.4]} 51... fxe4 {[%clk 0:00:36.6]} 52. Kb4 {[%clk 0:00:51.7]} 52... g4
{[%clk 0:00:35.9]} 53. h4 {[%clk 0:00:50.9]} 53... Na8 {[%clk 0:00:17.8]} 54.
Kb5 {[%clk 0:00:49.3]} 54... Kd6 {[%clk 0:00:18.2]} 55. Kc4 {[%clk 0:00:46.5]}
55... Kc6 {[%clk 0:00:11.9]} 56. Kd4 {[%clk 0:00:46.2]} 56... Kb6 {[%clk
0:00:12.4]} 57. Kxe4 {[%clk 0:00:47]} 57... Kxa7 {[%clk 0:00:13.1]} 58. Kf5
{[%clk 0:00:47.7]} 58... Kb6 {[%clk 0:00:11.8]} 59. Kg5 {[%clk 0:00:48.3]} 59...
Kc5 {[%clk 0:00:12.4]} 60. Kxh5 {[%clk 0:00:48.9]} 60... Kd5 {[%clk 0:00:13.3]}
61. Kxg4 {[%clk 0:00:42.9]} 61... Nc7 {[%clk 0:00:12.8]} 62. Kf5 {[%clk
0:00:41.6]} 62... Ne8 {[%clk 0:00:12.1]} 63. h5 {[%clk 0:00:40.7]} 63... Nd6+
{[%clk 0:00:12.3]} 64. Kf6 {[%clk 0:00:37]} 64... Ne4+ {[%clk 0:00:12.7]} 65.
Kf5 {[%clk 0:00:36.1]} 65... Nd6+ {[%clk 0:00:12.4]} 66. Kg6 {[%clk 0:00:36.6]}
66... Ke6 {[%clk 0:00:10]} 67. h6 {[%clk 0:00:36.7]} 67... Nf7 {[%clk
0:00:04.2]} 68. Kg7 {[%clk 0:00:35.4]} 68... Nd6 {[%clk 0:00:01.8]} 69. e4
{[%clk 0:00:30.5]} 69... Nf7 {[%clk 0:00:02]} 70. h7 {[%clk 0:00:30.5]} 70...
Ke7 {[%clk 0:00:01.9]} 71. h8=Q {[%clk 0:00:29.9]} 71... Nxh8 {[%clk 0:00:02.1]}
72. Kxh8 {[%clk 0:00:30.8]} 72... Kf6 {[%clk 0:00:02.9]} 73. f4 {[%clk
0:00:31.1]} 1-0

[Event "Late-Titled-Tuesday-Blitz-March-12-2024"]
[Site "Chess.com"]
[Date "2024.03.12"]
[Round "1"]
[White "picturesquecheck"]
[Black "aa175"]
[Result "0-1"]
[WhiteElo "2410"]
[BlackElo "2724"]
[TimeControl "180+1"]
[EndTime "14:08:22 PDT"]
[Termination "aa175 won by resignation"]

1. e4 {[%clk 0:03:00.9]} 1... c5 {[%clk 0:02:57.8]} 2. Nf3 {[%clk 0:02:58.1]}
2... d6 {[%clk 0:02:56.1]} 3. d4 {[%clk 0:02:56]} 3... cxd4 {[%clk 0:02:56.4]}
4. Nxd4 {[%clk 0:02:56.9]} 4... Nf6 {[%clk 0:02:56.6]} 5. Bd3 {[%clk 0:02:57]}
5... Nc6 {[%clk 0:02:54.6]} 6. Nb3 {[%clk 0:02:53.8]} 6... e6 {[%clk 0:02:49.6]}
7. c4 {[%clk 0:02:52.8]} 7... Be7 {[%clk 0:02:50.2]} 8. O-O {[%clk 0:02:52.2]}
8... O-O {[%clk 0:02:50.9]} 9. Nc3 {[%clk 0:02:50.3]} 9... a6 {[%clk 0:02:51]}
10. Be3 {[%clk 0:02:47.7]} 10... Bd7 {[%clk 0:02:47]} 11. Rc1 {[%clk 0:02:47.6]}
11... Rc8 {[%clk 0:02:46.1]} 12. Kh1 {[%clk 0:02:47.7]} 12... h5 {[%clk
0:02:44.4]} 13. h3 {[%clk 0:02:46.3]} 13... Ne5 {[%clk 0:02:44]} 14. Ne2 {[%clk
0:02:39.8]} 14... Bc6 {[%clk 0:02:38]} 15. f3 {[%clk 0:02:36.6]} 15... Nxd3
{[%clk 0:02:34.1]} 16. Qxd3 {[%clk 0:02:37.5]} 16... b5 {[%clk 0:02:32]} 17.
Nbd4 {[%clk 0:02:35.3]} 17... bxc4 {[%clk 0:02:24.5]} 18. Qxc4 {[%clk
0:02:23.5]} 18... Bb7 {[%clk 0:02:21.1]} 19. Qb3 {[%clk 0:02:20.4]} 19... Qd7
{[%clk 0:02:18.9]} 20. Nc3 {[%clk 0:02:11.7]} 20... g6 {[%clk 0:02:03.8]} 21.
Na4 {[%clk 0:02:08.7]} 21... Rxc1 {[%clk 0:01:46.8]} 22. Rxc1 {[%clk 0:02:08.2]}
22... Rb8 {[%clk 0:01:47.4]} 23. Nb6 {[%clk 0:01:46.7]} 23... Qe8 {[%clk
0:01:45.6]} 24. Qc2 {[%clk 0:01:10.6]} 24... Nd7 {[%clk 0:01:29.7]} 25. Nc6
{[%clk 0:00:57]} 25... Bxc6 {[%clk 0:01:18.4]} 26. Qxc6 {[%clk 0:00:56.4]} 26...
Nxb6 {[%clk 0:01:17.1]} 27. Qxe8+ {[%clk 0:00:56.4]} 27... Rxe8 {[%clk
0:01:16.4]} 28. Bxb6 {[%clk 0:00:57.1]} 28... Bf6 {[%clk 0:01:10.1]} 29. b3
{[%clk 0:00:52.4]} 29... d5 {[%clk 0:01:06.2]} 30. Re1 {[%clk 0:00:42]} 30...
Rc8 {[%clk 0:00:58.1]} 31. exd5 {[%clk 0:00:36]} 31... exd5 {[%clk 0:00:59]} 32.
Rd1 {[%clk 0:00:36.2]} 32... d4 {[%clk 0:00:35.7]} 33. f4 {[%clk 0:00:22.1]}
33... Rc6 {[%clk 0:00:27.1]} 34. Ba7 {[%clk 0:00:19.1]} 34... Rc7 {[%clk
0:00:27.5]} 35. Bb6 {[%clk 0:00:19]} 35... Rb7 {[%clk 0:00:28.1]} 36. Bc5 {[%clk
0:00:18.2]} 36... Rb5 {[%clk 0:00:28.5]} 37. b4 {[%clk 0:00:16.8]} 37... a5
{[%clk 0:00:19.7]} 38. a3 {[%clk 0:00:17.2]} 38... axb4 {[%clk 0:00:17.6]} 39.
axb4 {[%clk 0:00:18.1]} 39... Rb7 {[%clk 0:00:16.8]} 40. Rd2 {[%clk 0:00:17]}
40... Rd7 {[%clk 0:00:10.8]} 41. g3 {[%clk 0:00:15]} 41... d3 {[%clk 0:00:11.1]}
42. Kg2 {[%clk 0:00:14.8]} 42... Bc3 {[%clk 0:00:11.4]} 43. Rd1 {[%clk
0:00:15.3]} 43... d2 {[%clk 0:00:11.8]} 44. Kf3 {[%clk 0:00:15.7]} 44... Rd3+
{[%clk 0:00:11.7]} 45. Kf2 {[%clk 0:00:12.6]} 45... h4 {[%clk 0:00:11.5]} 46.
gxh4 {[%clk 0:00:12.3]} 46... Rxh3 {[%clk 0:00:12.4]} 47. Be3 {[%clk 0:00:10.3]}
47... Rxh4 {[%clk 0:00:09.4]} 48. b5 {[%clk 0:00:10.3]} 48... Rh2+ {[%clk
0:00:06]} 49. Kf3 {[%clk 0:00:10.5]} 49... Rh3+ {[%clk 0:00:04.9]} 50. Ke2
{[%clk 0:00:10.9]} 50... Rh2+ {[%clk 0:00:03.7]} 51. Kd3 {[%clk 0:00:11.3]}
51... Rh3 {[%clk 0:00:02.8]} 52. b6 {[%clk 0:00:08.4]} 52... Ba5 {[%clk
0:00:03.1]} 53. Ke4 {[%clk 0:00:08]} 53... Rh5 {[%clk 0:00:02]} 54. b7 {[%clk
0:00:07.6]} 54... Rb5 {[%clk 0:00:02.5]} 55. Bxd2 {[%clk 0:00:06.3]} 55... Bxd2
{[%clk 0:00:02.6]} 56. Rxd2 {[%clk 0:00:06.1]} 56... Rxb7 {[%clk 0:00:03.3]} 57.
Kf3 {[%clk 0:00:06.7]} 57... Kg7 {[%clk 0:00:03.5]} 58. Kg4 {[%clk 0:00:07.1]}
58... Kf6 {[%clk 0:00:03.9]} 59. Rd6+ {[%clk 0:00:06.6]} 59... Ke7 {[%clk
0:00:04.5]} 60. Ra6 {[%clk 0:00:07.2]} 60... Rb1 {[%clk 0:00:04.7]} 61. Ra7+
{[%clk 0:00:07.4]} 61... Kf6 {[%clk 0:00:05.3]} 62. Ra6+ {[%clk 0:00:07.9]}
62... Kg7 {[%clk 0:00:05.7]} 63. Rc6 {[%clk 0:00:08]} 63... Rg1+ {[%clk
0:00:06.2]} 64. Kh4 {[%clk 0:00:08.3]} 64... Rf1 {[%clk 0:00:07.1]} 65. Kg4
{[%clk 0:00:08.7]} 65... Rg1+ {[%clk 0:00:07.8]} 66. Kh4 {[%clk 0:00:09.1]}
66... f5 {[%clk 0:00:08.2]} 67. Kh3 {[%clk 0:00:07.8]} 67... Rg4 {[%clk
0:00:08]} 68. Rc5 {[%clk 0:00:07.2]} 68... Rxf4 {[%clk 0:00:07.7]} 69. Kg3
{[%clk 0:00:08]} 69... Rg4+ {[%clk 0:00:08]} 0-1

[Event "Late-Titled-Tuesday-Blitz-March-12-2024"]
[Site "Chess.com"]
[Date "2024.03.12"]
[Round "1"]
[White "sergoy"]
[Black "Mikayel99"]
[Result "1-0"]
[WhiteElo "3025"]
[BlackElo "2548"]
[TimeControl "180+1"]
[EndTime "14:08:23 PDT"]
[Termination "sergoy won by checkmate"]

1. d4 {[%clk 0:02:59.7]} 1... Nf6 {[%clk 0:02:52.5]} 2. c4 {[%clk 0:02:59.6]}
2... e6 {[%clk 0:02:50.4]} 3. Nf3 {[%clk 0:02:59.4]} 3... d5 {[%clk 0:02:50.2]}
4. Nc3 {[%clk 0:02:58.9]} 4... c5 {[%clk 0:02:50.3]} 5. e3 {[%clk 0:02:56.9]}
5... Nc6 {[%clk 0:02:50.1]} 6. a3 {[%clk 0:02:57.3]} 6... dxc4 {[%clk
0:02:49.8]} 7. Bxc4 {[%clk 0:02:58.2]} 7... a6 {[%clk 0:02:50]} 8. Ba2 {[%clk
0:02:56.8]} 8... Be7 {[%clk 0:02:43.7]} 9. O-O {[%clk 0:02:54]} 9... O-O {[%clk
0:02:41.7]} 10. Qe2 {[%clk 0:02:54.3]} 10... b5 {[%clk 0:02:39.4]} 11. Rd1
{[%clk 0:02:54.3]} 11... cxd4 {[%clk 0:02:39.2]} 12. exd4 {[%clk 0:02:54.4]}
12... Qc7 {[%clk 0:02:34.2]} 13. d5 {[%clk 0:02:51.5]} 13... exd5 {[%clk
0:02:34.2]} 14. Nxd5 {[%clk 0:02:51.9]} 14... Nxd5 {[%clk 0:02:34.5]} 15. Bxd5
{[%clk 0:02:52.7]} 15... Bb7 {[%clk 0:02:28.7]} 16. Be3 {[%clk 0:02:48.4]} 16...
Rac8 {[%clk 0:02:12.7]} 17. Rac1 {[%clk 0:02:46.9]} 17... Qb8 {[%clk 0:02:08.4]}
18. Bg5 {[%clk 0:02:40.9]} 18... Bxg5 {[%clk 0:01:21.8]} 19. Nxg5 {[%clk
0:02:41.8]} 19... h6 {[%clk 0:01:04.7]} 20. Nxf7 {[%clk 0:02:24.4]} 20... Rxf7
{[%clk 0:01:00.6]} 21. Bxf7+ {[%clk 0:02:24.4]} 21... Kxf7 {[%clk 0:01:01.1]}
22. Rd7+ {[%clk 0:02:25.2]} 22... Kg8 {[%clk 0:00:58.4]} 23. Qe6+ {[%clk
0:02:25.3]} 23... Kh8 {[%clk 0:00:58.9]} 24. Re1 {[%clk 0:02:11.6]} 24... Rg8
{[%clk 0:00:46.4]} 25. h3 {[%clk 0:01:53.7]} 25... Ba8 {[%clk 0:00:40.3]} 26.
Re3 {[%clk 0:01:19.8]} 26... Qf4 {[%clk 0:00:36.1]} 27. Rf7 {[%clk 0:01:08.9]}
27... Qg5 {[%clk 0:00:29.5]} 28. Qf5 {[%clk 0:01:02.2]} 28... Qxf5 {[%clk
0:00:25.8]} 29. Rxf5 {[%clk 0:01:03.1]} 29... Na5 {[%clk 0:00:24.4]} 30. b3
{[%clk 0:01:01]} 30... Rd8 {[%clk 0:00:19.1]} 31. a4 {[%clk 0:01:00.7]} 31...
Bc6 {[%clk 0:00:18.1]} 32. axb5 {[%clk 0:01:01]} 32... Bxb5 {[%clk 0:00:18.1]}
33. Rf7 {[%clk 0:00:57.5]} 33... Nc6 {[%clk 0:00:17]} 34. h4 {[%clk 0:00:51.7]}
34... Nd4 {[%clk 0:00:12.2]} 35. Kh2 {[%clk 0:00:50.8]} 35... Nxb3 {[%clk
0:00:09.6]} 36. Rg3 {[%clk 0:00:39.7]} 36... Rg8 {[%clk 0:00:09.8]} 37. f4
{[%clk 0:00:31.4]} 37... Nc5 {[%clk 0:00:08]} 38. Re3 {[%clk 0:00:29.7]} 38...
Nd7 {[%clk 0:00:07.5]} 39. g4 {[%clk 0:00:27.5]} 39... Nf6 {[%clk 0:00:07.9]}
40. Kg3 {[%clk 0:00:27.8]} 40... Be8 {[%clk 0:00:05.3]} 41. Ra7 {[%clk
0:00:26.8]} 41... Bb5 {[%clk 0:00:05.4]} 42. g5 {[%clk 0:00:26.5]} 42... hxg5
{[%clk 0:00:05.4]} 43. hxg5 {[%clk 0:00:26.7]} 43... Nd5 {[%clk 0:00:05.8]} 44.
Re1 {[%clk 0:00:25.9]} 44... Rf8 {[%clk 0:00:03.4]} 45. Re4 {[%clk 0:00:20.3]}
45... Kg8 {[%clk 0:00:02.5]} 46. Kg4 {[%clk 0:00:18.8]} 46... Nc3 {[%clk
0:00:02.1]} 47. Ree7 {[%clk 0:00:18]} 47... Be2+ {[%clk 0:00:02.2]} 48. Kg3
{[%clk 0:00:18]} 48... Bd3 {[%clk 0:00:01.3]} 49. Rxg7+ {[%clk 0:00:17.2]} 49...
Kh8 {[%clk 0:00:02.1]} 50. Rge7 {[%clk 0:00:17.5]} 50... Ne4+ {[%clk 0:00:02.6]}
51. Kg4 {[%clk 0:00:17.9]} 51... Nf2+ {[%clk 0:00:03.1]} 52. Kf3 {[%clk
0:00:18]} 52... Ne4 {[%clk 0:00:03.1]} 53. Ke3 {[%clk 0:00:18.2]} 53... Nc5
{[%clk 0:00:03.4]} 54. Rec7 {[%clk 0:00:17.2]} 54... Re8+ {[%clk 0:00:03.8]} 55.
Kf3 {[%clk 0:00:15.7]} 55... Be4+ {[%clk 0:00:03.9]} 56. Kg4 {[%clk 0:00:16.1]}
56... Ne6 {[%clk 0:00:04.4]} 57. Re7 {[%clk 0:00:16.2]} 57... Rxe7 {[%clk
0:00:04.1]} 58. Rxe7 {[%clk 0:00:17.1]} 58... Nc5 {[%clk 0:00:04.9]} 59. f5
{[%clk 0:00:17]} 59... Kg8 {[%clk 0:00:05.1]} 60. f6 {[%clk 0:00:16.9]} 60...
Bg6 {[%clk 0:00:05.2]} 61. Rg7+ {[%clk 0:00:16.6]} 61... Kf8 {[%clk 0:00:05.5]}
62. Rxg6 {[%clk 0:00:17.5]} 62... Ne6 {[%clk 0:00:05.9]} 63. Rh6 {[%clk
0:00:17.2]} 63... Kf7 {[%clk 0:00:06.5]} 64. Kh5 {[%clk 0:00:15.2]} 64... a5
{[%clk 0:00:06.6]} 65. Rh7+ {[%clk 0:00:15.6]} 65... Kg8 {[%clk 0:00:06.9]} 66.
Ra7 {[%clk 0:00:16.3]} 66... Nf4+ {[%clk 0:00:04.5]} 67. Kh6 {[%clk 0:00:16.7]}
67... Ne6 {[%clk 0:00:04.6]} 68. g6 {[%clk 0:00:17.3]} 68... Nf8 {[%clk
0:00:04.8]} 69. Ra8 {[%clk 0:00:17.8]} 69... a4 {[%clk 0:00:04.8]} 70. f7+
{[%clk 0:00:18.3]} 70... Kh8 {[%clk 0:00:05.6]} 71. g7# {[%clk 0:00:18.1]} 1-0